bitfinex-derivatives/quotes_ETHF0:USTF0_20260305
["timestamp","ask_amount","ask_price","bid_price","bid_amount"]
[1772700785330,0.53856009,2115.5,2114.5,0.53919645]
[1772700786337,0.53856009,2115.5,2114.5,0.54493406]
[1772700787541,0.53856009,2115.3,2114.5,0.54493406]
[1772700788845,0.53856009,2115.2,2114.5,0.00573761]
[1772700789142,0.54211187,2115.2,2114.2,0.53919645]
[1772700790139,0.54211187,2115.2,2114.2,0.54355847]
[1772700790536,0.53856009,2115.0,2114.2,0.54355847]
[1772700793245,0.53856009,2115.0,2114.2,0.00436202]
[1772700793646,0.53856009,2114.8,2114.2,0.00436202]
[1772700793845,0.53856009,2114.8,2114.1,0.53919645]
[1772700794436,6.585,2114.8,2114.1,0.53919645]
[1772700794641,6.585,2114.9,2114.1,0.53919645]
[1772700794935,6.585,2114.9,2114.1,0.5430643]
[1772700795845,7.12356009,2114.9,2114.1,0.5430643]
[1772700796332,0.53856009,2115.1,2114.1,0.5430643]
[1772700796739,6.586,2115.0,2114.1,0.5430643]
[1772700797146,0.00355178,2115.2,2114.1,0.5430643]
[1772700797342,6.58955178,2115.2,2114.3,0.53919645]
[1772700797542,0.00355178,2115.2,2114.5,0.53919645]
[1772700797745,0.53856009,2115.6,2114.7,0.53919645]
[1772700798043,6.586,2115.5,2114.7,0.53919645]
[1772700798244,6.587,2115.7,2114.7,0.53919645]
[1772700798435,7.12556009,2115.7,2114.7,0.53919645]
[1772700798634,0.53856009,2115.6,2114.7,0.53919645]
[1772700799845,6.587,2115.5,2114.7,0.53919645]
[1772700800247,0.55722252,2115.5,2114.7,0.53919645]
[1772700800449,0.56294051,2115.7,2114.7,0.53919645]
[1772700800649,0.55722252,2115.5,2114.7,0.53919645]
[1772700804750,0.55722252,2115.3,2114.7,0.53919645]
[1772700805345,0.55722252,2115.3,2114.2,0.57907444]
[1772700806052,6.587,2115.4,2114.6,0.57907444]
[1772700806547,7.14422252,2115.4,2114.6,0.57907444]
[1772700807550,0.55928608,2115.3,2114.6,0.57907444]
[1772700807950,6.588,2115.3,2114.6,0.57907444]
[1772700808151,0.55928608,2115.5,2114.6,0.57907444]
[1772700808345,6.588,2115.4,2114.6,0.57907444]
[1772700810458,0.55928608,2115.3,2114.6,0.57907444]
[1772700813754,7.14728608,2115.2,2114.6,0.57907444]
[1772700813953,6.588,2115.1,2114.6,0.57907444]
[1772700814156,7.14728608,2115.1,2114.6,0.57907444]
[1772700814358,0.55928608,2115.6,2114.6,0.57907444]
[1772700814659,6.588,2115.4,2114.6,0.57907444]
[1772700814860,0.55928608,2115.3,2114.6,0.57907444]
[1772700817259,0.55928608,2115.3,2114.5,0.59003964]
[1772700817659,0.55928608,2115.3,2114.2,3.8760933]
[1772700817660,0.55928608,2115.3,2114.3,0.59003964]
[1772700817859,0.55928608,2115.2,2114.1,0.59390749]
[1772700819755,0.55928608,2115.0,2114.3,0.59003964]
[1772700820358,7.14928608,2115.0,2114.3,0.59003964]
[1772700820661,6.59,2115.0,2114.3,0.59003964]
[1772700821658,6.592,2115.0,2114.3,0.59003964]
[1772700822762,6.593,2115.0,2114.3,0.59003964]
[1772700823762,3.95209732,2115.6,2114.5,0.59003964]
[1772700823763,6.594,2115.3,2114.5,0.59003964]
[1772700824065,0.55928608,2115.2,2114.5,0.59003964]
[1772700825064,0.55928608,2115.2,2114.3,0.59003964]
[1772700825565,0.55928608,2115.0,2114.3,0.59003964]
[1772700827862,0.55928608,2115.0,2114.1,4.47000079]
[1772700828061,0.55928608,2115.0,2114.1,0.59390749]
[1772700828254,3.95209732,2115.2,2114.1,0.59390749]
[1772700828454,0.55928608,2115.0,2114.2,0.59003964]
[1772700829261,6.602,2114.9,2114.2,0.59003964]
[1772700829964,7.18708122,2114.9,2114.2,0.59003964]
[1772700830367,0.58508122,2114.8,2114.2,0.59003964]
[1772700832158,7.1871628,2114.7,2114.2,0.59003964]
[1772700832667,7.1871628,2114.7,2114.1,0.00386785]
[1772700832668,0.5801628,2114.6,2114.1,0.00386785]
[1772700832868,0.5801628,2114.6,2114.1,0.55484503]
[1772700834469,0.5801628,2114.6,2114.1,0.00386785]
[1772700834970,0.5801628,2114.6,2114.0,0.55097718]
[1772700835870,0.5801628,2114.6,2114.0,0.5561933]
[1772700836371,6.614,2114.5,2114.0,0.5561933]
[1772700836765,7.19238964,2114.5,2114.0,0.5561933]
[1772700837259,0.57839989,2114.4,2114.0,0.5561933]
[1772700837464,0.57839989,2114.4,2113.9,0.23649]
[1772700837665,0.57839989,2114.4,2114.0,0.16439658]
[1772700837970,0.57839989,2114.4,2113.9,0.23649]
[1772700838371,0.57839989,2114.4,2113.9,0.24227464]
[1772700838664,0.57839989,2114.4,2113.9,0.00578464]
[1772700838865,0.57839989,2114.4,2113.6,3.8760933]
[1772700839065,0.57839989,2114.4,2113.5,3.8760933]
[1772700839871,0.57839989,2114.4,2113.5,3.88105692]
[1772700840366,0.59979732,2114.2,2113.5,3.88105692]
[1772700840572,7.22741452,2114.2,2113.5,3.88105692]
[1772700840774,0.59979732,2114.1,2113.5,3.88105692]
[1772700840969,0.0056172,2114.2,2113.5,0.00496362]
[1772700841272,6.623,2114.4,2113.6,0.23652]
[1772700842173,7.22704052,2114.4,2113.6,0.23652]
[1772700843776,0.00476114,2114.4,2113.8,0.2365]
[1772700844173,0.60212782,2115.0,2113.8,4.1125933]
[1772700844378,0.60212782,2115.2,2114.2,0.23645]
[1772700845272,0.60565182,2115.2,2114.2,0.23645]
[1772700846575,0.60076005,2115.0,2114.2,0.23645]
[1772700847472,0.60237248,2114.8,2114.2,0.23645]
[1772700848581,0.60237248,2114.8,2113.9,3.8760933]
[1772700848971,0.60237248,2114.8,2113.8,3.8760933]
[1772700850073,0.60237248,2114.8,2113.7,4.1126033]
[1772700850877,0.60237248,2114.8,2113.7,0.23651]
[1772700851677,7.23192977,2114.7,2113.7,4.1126033]
[1772700852182,0.59892977,2114.6,2113.7,4.1126033]
[1772700853181,0.59892977,2114.6,2113.8,0.00157143]
[1772700854388,0.59892977,2114.6,2113.6,3.8760933]
[1772700854588,0.59892977,2114.6,2113.6,3.87766473]
[1772700855088,0.59892977,2114.6,2113.5,3.88105692]
[1772700855292,0.59892977,2114.6,2113.5,0.00496362]
[1772700855494,4.54644632,2114.5,2113.5,0.00496362]
[1772700855693,4.54644632,2114.5,2113.0,0.01412961]
[1772700855694,0.59186719,2114.1,2113.0,0.01412961]
[1772700855992,0.59186719,2113.9,2113.1,0.01412961]
[1772700856189,0.59186719,2113.9,2113.2,0.01412961]
[1772700856493,0.59186719,2114.3,2113.5,0.01412961]
[1772700856683,6.637,2114.4,2113.7,0.01412961]
[1772700857193,0.59186719,2114.5,2113.7,0.01412961]
[1772700857394,7.22986719,2114.5,2113.7,0.01412961]
[1772700858190,7.22986719,2114.5,2113.7,0.25063961]
[1772700858393,0.59191296,2114.4,2113.8,0.01403807]
[1772700861700,0.59191296,2114.4,2113.7,4.1126033]
[1772700861901,0.59920963,2114.3,2113.7,0.23651]
[1772700866497,0.59920963,2114.3,2113.5,3.88155772]
[1772700866704,0.59920963,2114.3,2113.5,0.00546442]
[1772700867092,0.59920963,2114.3,2113.2,4.1126533]
[1772700867502,0.59920963,2114.3,2113.1,0.00773763]
[1772700867803,0.59460267,2114.2,2113.0,3.88383093]
[1772700868205,0.59460267,2114.2,2113.0,3.88810052]
[1772700868404,0.59460267,2114.2,2113.0,0.01200722]
[1772700868904,0.59460267,2114.0,2113.0,0.00426959]
[1772700869104,0.59460267,2113.8,2113.0,0.00426959]
[1772700870005,0.59460267,2113.8,2113.0,0.01829135]
[1772700870405,0.59460267,2113.8,2113.0,0.00426959]
[1772700873202,0.59095496,2113.6,2113.0,0.00426959]
[1772700873398,6.655,2113.5,2113.0,0.00426959]
[1772700873703,0.59373319,2113.4,2113.0,0.01374618]
[1772700874205,0.59373319,2113.4,2113.0,0.00426959]
[1772700874408,0.59373319,2113.3,2113.0,0.01374618]
[1772700874606,0.59373319,2113.3,2113.0,0.00426959]
[1772700875401,0.59373319,2113.3,2112.7,0.23662]
[1772700875797,0.59373319,2113.3,2112.7,0.24985366]
[1772700876202,0.59373319,2113.3,2112.5,0.01323366]
[1772700876407,0.59373319,2113.3,2112.6,0.01323366]
[1772700877598,0.59373319,2113.3,2112.5,0.01698748]
[1772700877803,0.59373319,2113.3,2112.6,0.01130163]
[1772700880608,0.59847149,2115.3,2114.0,0.23648]
[1772700880908,0.59847149,2115.1,2114.1,3.89213159]
[1772700881313,0.59847149,2115.1,2114.0,4.12861159]
[1772700881513,15.66332192,2115.1,2114.0,4.13445007]
[1772700881712,0.6023687,2115.0,2114.0,0.24231848]
[1772700882214,0.6023687,2115.0,2114.1,0.27053723]
[1772700886917,0.58658957,2114.8,2114.1,0.27053723]
[1772700887615,0.58835337,2114.6,2114.0,0.51651073]
[1772700888619,0.58871928,2114.4,2114.0,0.28003073]
[1772700888815,0.58871928,2114.4,2114.0,0.00583848]
[1772700889020,0.58871928,2114.4,2114.0,0.1985087]
[1772700889623,0.72015458,2114.6,2114.0,0.1985087]
[1772700889819,0.72015458,2114.5,2114.0,0.1985087]
[1772700891523,0.72015458,2114.3,2113.7,0.18019165]
[1772700891722,0.72015458,2114.3,2113.9,0.18019165]
[1772700892426,0.72015458,2114.3,2113.9,0.18581023]
[1772700893425,0.72015458,2114.5,2113.9,0.18581023]
[1772700895530,0.72015458,2114.5,2114.0,4.0550115]
[1772700896430,0.72015458,2114.5,2114.1,0.15682623]
[1772700897728,15.1792307,2114.4,2114.1,0.15682623]
[1772700897922,0.72015458,2114.4,2114.1,0.15682623]
[1772700898628,0.72015458,2114.4,2114.2,3.893]
[1772700898832,0.72015458,2114.4,2114.3,3.893]
[1772700899037,0.72015458,2114.6,2114.3,3.893]
[1772700899238,0.72015458,2114.5,2114.3,3.893]
[1772700900231,0.72015458,2114.7,2114.3,4.6043699]
[1772700900435,14.45907612,2114.6,2114.3,4.6043699]
[1772700900635,15.1792307,2114.6,2114.3,4.6043699]
[1772700901439,12.13374882,2114.6,2114.3,4.6043699]
[1772700901941,11.41359424,2114.6,2114.4,0.7113699]
[1772700902130,12.13374882,2114.6,2114.3,4.6043699]
[1772700902531,0.00430688,2115.1,2114.4,4.6043699]
[1772700902532,0.72015458,2114.9,2114.4,4.6043699]
[1772700902739,0.72015458,2114.9,2114.5,3.893]
[1772700903332,0.72015458,2114.9,2114.5,3.54172159]
[1772700903530,0.72015458,2114.9,2114.5,0.33171976]
[1772700904341,0.55224635,2114.7,2114.5,0.33171976]
[1772700905240,0.00430688,2115.1,2114.5,1.24614536]
[1772700905437,0.72446146,2115.1,2114.7,0.9144256]
[1772700906644,0.72446146,2115.1,2114.5,1.24548656]
[1772700907639,0.72015458,2115.5,2114.6,0.90532701]
[1772700907943,0.72015458,2115.3,2114.6,0.90532701]
[1772700908136,7.44115458,2115.2,2114.6,0.90532701]
[1772700908534,0.72015458,2115.8,2114.6,0.90532701]
[1772700908743,0.72015458,2115.6,2114.6,0.90532701]
[1772700911245,0.72015458,2115.6,2114.5,0.56813976]
[1772700912039,0.72015458,2115.6,2114.3,0.90174597]
[1772700912242,0.72015458,2115.6,2114.2,3.89213159]
[1772700912243,0.55926568,2115.3,2114.2,0.98376062]
[1772700913239,0.55926568,2115.3,2114.0,4.12860159]
[1772700913435,0.55926568,2115.3,2114.0,5.11657875]
[1772700913644,0.55926568,2115.3,2114.1,0.98797716]
[1772700916439,0.51480226,2115.1,2114.1,0.98797716]
[1772700917143,0.51480226,2114.9,2114.1,0.98797716]
[1772700918046,0.51480226,2114.9,2114.2,1.0035839]
[1772700919246,0.61202185,2114.7,2114.2,1.0035839]
[1772700920343,0.60466938,2114.9,2114.2,1.0035839]
[1772700920545,6.728,2114.8,2114.3,1.20288161]
[1772700920849,0.60466938,2114.9,2114.3,1.20288161]
[1772700921845,6.728,2115.0,2114.3,1.20288161]
[1772700922049,6.729,2114.9,2114.4,1.20288161]
[1772700922839,7.31921062,2114.9,2114.4,1.20288161]
[1772700923041,0.59021062,2114.8,2114.4,1.20288161]
[1772700930146,6.729,2114.9,2114.4,1.20288161]
[1772700930353,6.2031545,2114.8,2114.4,1.43931161]
[1772700930553,6.734,2114.8,2114.4,1.43931161]
[1772700931146,1.20665488,2115.5,2114.6,1.25829456]
[1772700931346,7.94065488,2115.4,2114.7,1.25829456]
[1772700931949,1.20665488,2115.3,2114.8,1.25829456]
[1772700933547,6.734,2115.4,2114.8,1.25829456]
[1772700933847,1.20665488,2115.4,2114.8,1.25829456]
[1772700934042,6.736,2115.3,2114.9,1.25829456]
[1772700934856,6.00625601,2115.3,2114.9,1.25829456]
[1772700936153,6.737,2115.4,2114.9,1.25829456]
[1772700937249,6.737,2115.6,2114.9,5.15042615]
[1772700937552,6.737,2115.6,2115.0,1.25829456]
[1772700938353,1.21097536,2115.8,2115.1,1.25829456]
[1772700938555,0.00432048,2115.8,2115.1,1.25829456]
[1772700939249,6.74132048,2115.8,2115.1,1.25829456]
[1772700939449,0.00432048,2115.8,2115.1,1.25829456]
[1772700939650,1.20665488,2115.7,2115.1,1.25829456]
[1772700943657,1.20665488,2115.7,2115.1,3.893]
[1772700946559,1.20665488,2115.7,2115.0,5.15129456]
[1772700946962,1.20665488,2115.7,2115.1,1.25829456]
[1772700952057,6.739,2115.6,2115.1,1.25829456]
[1772700952263,1.24393973,2115.5,2115.1,1.25829456]
[1772700956465,7.98293973,2115.7,2115.1,1.25829456]
[1772700957571,1.24393973,2115.7,2115.1,1.25829456]
[1772700957869,6.739,2115.6,2115.1,1.25829456]
[1772700958562,6.739,2115.6,2115.3,1.1570404]
[1772700958971,1.24826021,2115.8,2115.3,1.1570404]
[1772700959368,6.739,2115.7,2115.3,1.1570404]
[1772700960171,1.24826021,2115.8,2115.3,1.1570404]
[1772700960374,6.739,2115.9,2115.5,1.1570404]
[1772700961470,6.7442837,2115.9,2115.5,1.16122484]
[1772700962379,7.98822343,2115.9,2115.5,1.16122484]
[1772700962579,1.24393973,2115.8,2115.5,0.00418444]
[1772700964276,7.98393973,2115.7,2115.5,0.00418444]
[1772700964476,1.24393973,2115.6,2115.3,5.0500404]
[1772700964676,1.24393973,2115.6,2115.3,1.1570404]
[1772700965378,1.24393973,2115.6,2115.3,1.16202832]
[1772700966269,7.98393973,2115.7,2115.3,1.16202832]
[1772700967275,6.74,2115.7,2115.3,1.16202832]
[1772700967474,6.74,2115.7,2115.4,1.1570404]
[1772700967674,6.74,2115.7,2115.5,1.1570404]
[1772700967878,1.24393973,2115.6,2115.4,3.893]
[1772700968576,7.98393973,2115.7,2115.4,3.893]
[1772700968976,7.98393973,2115.7,2115.4,5.0500404]
[1772700969177,1.24393973,2115.6,2115.4,3.893]
[1772700969380,7.98493973,2115.7,2115.4,5.0500404]
[1772700970275,7.98493973,2115.7,2115.4,3.893]
[1772700970480,7.98493973,2115.7,2115.4,5.0500404]
[1772700972976,6.741,2115.7,2115.5,1.1570404]
[1772700973372,1.24393973,2115.8,2115.5,1.1570404]
[1772700973577,6.741,2115.7,2115.5,1.1570404]
[1772700973777,7.98493973,2115.7,2115.4,5.0500404]
[1772700974280,6.741,2115.7,2115.5,1.1570404]
[1772700974778,7.98493973,2115.7,2115.4,5.0500404]
[1772700975279,6.741,2115.7,2115.5,1.1570404]
[1772700975477,1.24393973,2116.4,2115.7,1.1570404]
[1772700975675,1.24393973,2116.3,2115.7,1.1570404]
[1772700976079,6.24844,2116.2,2115.9,1.1570404]
[1772700976276,1.24393973,2116.3,2115.9,1.1570404]
[1772700976471,6.741,2116.2,2115.9,1.1570404]
[1772700976674,1.24393973,2116.5,2115.9,1.1570404]
[1772700977578,6.74,2116.4,2115.9,1.1570404]
[1772700977883,1.24393973,2116.3,2115.9,1.1570404]
[1772700978679,7.98792458,2116.4,2115.9,1.1570404]
[1772700978878,1.24792458,2116.4,2115.9,1.1570404]
[1772700979078,6.74,2116.3,2115.9,1.1570404]
[1772700979283,1.24792458,2116.4,2115.9,1.1570404]
[1772700979478,6.74398485,2116.4,2115.9,1.1570404]
[1772700979878,0.00398485,2116.4,2115.9,1.1570404]
[1772700980079,6.74298485,2116.4,2115.9,1.1570404]
[1772700980475,7.87162672,2116.4,2115.9,1.1570404]
[1772700980680,7.87162672,2116.4,2116.0,1.12342699]
[1772700981482,1.12864187,2116.3,2116.0,1.12342699]
[1772700981786,6.74298485,2116.4,2116.0,1.12342699]
[1772700981787,7.87162672,2116.4,2116.0,1.12342699]
[1772700982187,1.13262672,2116.4,2116.0,1.12342699]
[1772700982485,7.86664187,2116.3,2116.0,1.12342699]
[1772700984088,1.12864187,2116.2,2115.9,5.01642699]
[1772700984886,1.12864187,2116.2,2115.9,3.893]
[1772700985188,1.12864187,2116.2,2115.9,5.01642699]
[1772700985488,1.12864187,2116.2,2115.9,3.893]
[1772700985787,1.12864187,2116.2,2116.0,3.893]
[1772700987781,1.12864187,2116.2,2115.8,0.23628]
[1772700987986,1.12864187,2116.2,2115.8,3.57927]
[1772700988488,1.12864187,2116.2,2115.8,4.67463829]
[1772700989189,7.91306834,2116.1,2115.8,5.18699954]
[1772700989388,7.91306834,2116.1,2115.8,6.28236783]
[1772700989584,6.736,2116.1,2115.9,1.09536829]
[1772700990289,7.91306834,2116.1,2115.8,6.28236783]
[1772700990589,1.17706834,2116.0,2115.8,3.34299]
[1772700990788,1.17706834,2116.0,2115.6,2.352]
[1772700990991,1.17706834,2116.0,2115.7,3.34299]
[1772700991784,1.17706834,2116.0,2115.6,2.352]
[1772700991990,1.17706834,2116.0,2115.6,5.69499]
[1772700993287,6.736,2115.9,2115.6,6.79035829]
[1772700993493,6.736,2115.9,2115.7,1.09536829]
[1772700993689,1.17706834,2116.0,2115.7,1.09536829]
[1772700993991,6.737,2115.9,2115.7,1.09536829]
[1772700994393,7.91406834,2115.9,2115.6,4.43835829]
[1772700995491,6.738,2115.8,2115.6,4.43835829]
[1772700995691,7.47841037,2115.9,2115.6,4.43835829]
[1772700998295,7.47841037,2115.9,2115.6,1.09536829]
[1772700998694,1.17706834,2116.3,2115.7,3.34299]
[1772700998993,1.17706834,2116.1,2115.7,4.43835829]
[1772700999896,6.741,2116.0,2115.8,1.09536829]
[1772701000495,0.00398485,2116.4,2115.8,1.09536829]
[1772701000696,1.17706834,2116.2,2115.9,6.04608783]
[1772701001494,6.742,2116.1,2115.9,4.43835829]
[1772701002297,1.17706834,2116.3,2115.9,3.34299]
[1772701002498,7.92106834,2116.2,2115.9,4.43835829]
[1772701003098,6.744,2116.2,2115.9,4.43835829]
[1772701003901,6.745,2116.2,2115.9,4.43835829]
[1772701005906,6.745,2116.2,2116.0,1.09536829]
[1772701006099,6.26798,2116.2,2116.0,1.09536829]
[1772701006399,6.748,2116.4,2116.2,1.09536829]
[1772701006599,7.92506834,2116.4,2116.1,1.09536829]
[1772701007506,7.93085705,2116.4,2116.1,1.09536829]
[1772701007805,1.17706834,2116.3,2115.8,4.98749988]
[1772701008006,1.17706834,2116.3,2116.0,0.79426117]
[1772701008606,6.751,2116.3,2116.1,1.88375414]
[1772701009506,6.752,2116.5,2116.2,4.51967035]
[1772701009705,7.55115458,2116.5,2116.2,2.11767964]
[1772701009908,6.753,2116.5,2116.3,2.11767964]
[1772701010300,6.753,2116.5,2116.2,2.91194081]
[1772701010501,6.75855506,2116.5,2116.2,2.91194081]
[1772701011307,6.76055506,2116.5,2116.3,2.11767964]
[1772701011508,6.76055506,2116.5,2116.2,2.91194081]
[1772701011901,1.20149367,2117.2,2116.5,2.11767964]
[1772701012101,1.20149367,2117.2,2116.6,3.72540918]
[1772701012303,1.51985059,2117.0,2116.5,0.79426117]
[1772701012497,1.51985059,2117.0,2116.3,2.91194081]
[1772701012699,1.51985059,2117.0,2116.3,2.11767964]
[1772701012907,1.52568836,2117.0,2116.4,2.91194081]
[1772701013107,8.27685059,2116.9,2116.4,2.11767964]
[1772701013306,1.53791914,2116.8,2116.5,0.79426117]
[1772701014405,1.53791914,2116.8,2116.3,2.11767964]
[1772701014606,1.49815362,2116.7,2116.3,2.11767964]
[1772701014909,1.49815362,2116.7,2116.2,2.11767964]
[1772701015110,1.49815362,2116.7,2116.0,6.00981123]
[1772701015311,1.49815362,2116.7,2116.1,3.72540918]
[1772701015610,1.49815362,2116.7,2116.2,2.11767964]
[1772701015913,1.49815362,2116.7,2116.0,2.11767964]
[1772701016610,1.52870148,2116.6,2115.8,2.11767964]
[1772701017707,1.53259225,2116.4,2115.8,2.11767964]
[1772701017907,1.53259225,2116.2,2115.8,2.11767964]
[1772701018705,1.53259225,2116.2,2115.7,2.11767964]
[1772701019111,1.53259225,2116.2,2115.8,2.11767964]
[1772701019414,1.33542426,2116.3,2115.8,2.11767964]
[1772701019607,6.766,2116.3,2115.8,2.11767964]
[1772701019806,8.90645284,2116.3,2115.8,2.11767964]
[1772701020007,6.766,2116.4,2115.9,1.60772954]
[1772701020309,8.90645284,2116.4,2116.0,2.11767964]
[1772701021110,2.14045284,2116.3,2116.0,2.11767964]
[1772701021311,2.14045284,2116.3,2115.8,2.11767964]
[1772701021511,2.14045284,2116.3,2115.7,3.72540918]
[1772701021911,2.14045284,2116.3,2115.7,2.11767964]
[1772701022308,2.14045284,2116.2,2115.6,1.60772954]
[1772701022615,8.91045284,2116.3,2115.7,2.11767964]
[1772701023118,2.14045284,2116.8,2116.0,1.60772954]
[1772701023414,2.14045284,2116.6,2116.1,2.11767964]
[1772701023604,2.14045284,2116.9,2116.2,1.60772954]
[1772701023803,2.14045284,2116.9,2116.3,2.11767964]
[1772701024911,0.00583777,2117.0,2116.3,2.11767964]
[1772701025118,8.92229061,2117.0,2116.3,2.11767964]
[1772701025816,2.14045284,2116.9,2116.3,2.11767964]
[1772701026817,8.91945284,2116.8,2116.3,2.11767964]
[1772701027313,2.14045284,2116.7,2116.3,2.11767964]
[1772701027910,2.14629061,2117.0,2116.3,2.11767964]
[1772701028115,8.92829061,2117.0,2116.3,2.11767964]
[1772701028514,2.14629061,2117.0,2116.3,2.11767964]
[1772701028820,0.00583777,2117.0,2116.3,2.11767964]
[1772701029718,2.14629061,2117.0,2116.3,2.11767964]
[1772701030219,0.00583777,2117.0,2116.3,2.11767964]
[1772701030616,0.78369953,2117.3,2116.5,2.11767964]
[1772701031020,0.78369953,2117.3,2116.6,2.11767964]
[1772701031414,2.92415237,2117.3,2116.6,2.11767964]
[1772701031615,2.14045284,2117.2,2116.6,2.11767964]
[1772701032115,2.14045284,2117.1,2116.6,2.11767964]
[1772701032316,2.14045284,2117.1,2116.5,2.11767964]
[1772701032621,2.14045284,2116.9,2116.5,2.11767964]
[1772701033322,2.14045284,2116.7,2116.3,2.11767964]
[1772701035025,2.14045284,2116.6,2116.2,2.11767964]
[1772701035524,8.92745284,2117.0,2116.2,2.11767964]
[1772701035724,2.14045284,2117.0,2116.2,2.11767964]
[1772701036724,2.14045284,2117.0,2116.3,2.352]
[1772701036917,2.14045284,2117.0,2116.4,2.11767964]
[1772701037115,2.14045284,2116.9,2116.4,2.11767964]
[1772701037524,2.14045284,2116.8,2116.4,2.11767964]
[1772701042033,4.50285284,2116.8,2116.4,2.11767964]
[1772701042628,2.38665633,2117.0,2116.4,2.11767964]
[1772701042828,2.38665633,2117.1,2116.5,2.43930073]
[1772701043324,2.38665633,2116.9,2116.5,2.43930073]
[1772701044228,2.38665633,2116.8,2116.5,2.43930073]
[1772701044424,2.38665633,2116.8,2116.4,4.79130073]
[1772701044729,2.38665633,2116.7,2116.4,4.79130073]
[1772701045628,2.3624,2116.6,2116.4,2.352]
[1772701045830,2.38665633,2116.5,2116.2,4.79130073]
[1772701046527,6.794,2117.2,2116.3,2.43930073]
[1772701046528,2.38665633,2117.1,2116.3,2.43930073]
[1772701046727,2.38665633,2116.9,2116.3,2.67552073]
[1772701047129,2.25358902,2116.7,2116.3,2.43930073]
[1772701047628,2.3624,2116.6,2116.3,2.43930073]
[1772701048531,2.25358902,2116.7,2116.3,2.43930073]
[1772701049028,2.3624,2116.6,2116.3,2.43930073]
[1772701049435,2.25358902,2116.7,2116.3,2.43930073]
[1772701049633,2.3624,2116.6,2116.3,2.43930073]
[1772701049834,2.25358902,2116.5,2116.2,4.70461918]
[1772701050334,2.25358902,2116.9,2116.2,4.70461918]
[1772701050635,2.3624,2116.7,2116.2,4.70461918]
[1772701050835,2.25358902,2116.6,2116.3,2.35261918]
[1772701051239,2.3624,2116.4,2116.3,2.35261918]
[1772701051442,2.25358902,2116.6,2116.3,2.35261918]
[1772701051738,2.25358902,2116.9,2116.3,2.35261918]
[1772701051939,9.05358902,2116.9,2116.3,2.35261918]
[1772701052237,2.25358902,2116.8,2116.3,2.35261918]
[1772701052835,2.25358902,2116.8,2116.1,14.78775077]
[1772701053035,0.78959029,2117.3,2116.7,2.35261918]
[1772701053339,2.25358902,2117.2,2116.8,2.35261918]
[1772701053538,2.25358902,2117.2,2116.8,2.35808508]
[1772701053837,3.04317931,2117.3,2116.8,2.35808508]
[1772701054039,0.78959029,2117.3,2116.8,2.35808508]
[1772701054727,7.5490408,2118.1,2116.9,2.35261918]
[1772701054728,2.25358902,2118.0,2116.9,2.35261918]
[1772701054929,2.25358902,2117.6,2116.9,2.35261918]
[1772701055935,2.25731316,2117.6,2116.9,2.35261918]
[1772701057039,2.25731316,2117.6,2116.8,2.35808508]
[1772701059037,2.25731316,2117.6,2116.8,0.0054659]
[1772701060842,2.25731316,2117.6,2116.5,2.35261918]
[1772701061232,2.25731316,2117.6,2116.3,2.35261918]
[1772701061434,2.25358902,2117.4,2116.2,2.35261918]
[1772701061642,2.25358902,2117.2,2116.0,2.35261918]
[1772701061844,2.25358902,2117.0,2116.0,2.35694069]
[1772701062740,0.23611,2117.3,2116.0,2.35694069]
[1772701062741,2.25358902,2116.8,2116.0,2.35694069]
[1772701064538,2.25358902,2117.3,2116.0,2.35694069]
[1772701064744,2.25358902,2117.1,2116.0,2.35694069]
[1772701066049,2.25358902,2117.2,2116.2,6.23757179]
[1772701066249,2.25358902,2117.2,2116.3,2.35261918]
[1772701075258,2.22926913,2117.0,2116.3,2.35261918]
[1772701075458,2.22926913,2116.9,2116.3,2.35261918]
[1772701076662,5.94566136,2117.6,2116.3,2.35261918]
[1772701076663,2.23299327,2117.6,2116.9,2.18459626]
[1772701076868,2.23299327,2117.6,2116.6,2.18459626]
[1772701077665,2.23299327,2117.6,2116.4,10.07873969]
[1772701077666,2.23299327,2117.6,2116.4,2.18459626]
[1772701078557,2.23299327,2117.6,2116.3,0.23621]
[1772701078558,9.03026913,2117.5,2116.6,2.18459626]
[1772701078763,2.22926913,2117.4,2116.6,2.18459626]
[1772701079171,9.03026913,2117.4,2116.6,2.18459626]
[1772701080367,6.801,2117.5,2116.7,2.18459626]
[1772701080866,9.03026913,2117.5,2116.7,2.18459626]
[1772701081371,2.22926913,2117.4,2116.7,2.18459626]
[1772701081967,0.07678151,2117.2,2116.4,2.23928096]
[1772701082666,0.06389563,2117.5,2116.4,2.23928096]
[1772701082968,0.06389563,2117.3,2116.4,2.23928096]
[1772701089073,0.09110476,2117.1,2116.4,2.23928096]
[1772701089376,0.09110476,2117.1,2116.1,2.25813774]
[1772701094678,0.03847273,2117.0,2116.1,2.25813774]
[1772701096379,0.02009726,2116.8,2116.1,2.25813774]
[1772701098780,5.94193722,2117.1,2116.1,2.25813774]
[1772701098981,6.808,2117.0,2116.1,2.25813774]
[1772701099281,0.23612,2117.2,2116.1,2.25813774]
[1772701099581,6.809,2117.1,2116.1,2.25813774]
[1772701103886,10.76404441,2117.1,2116.1,2.25813774]
[1772701104086,3.95504441,2117.1,2116.1,2.25813774]
[1772701104287,6.819,2117.0,2116.1,2.25813774]
[1772701104588,6.819,2116.9,2116.1,2.25813774]
[1772701104983,3.95504441,2117.2,2116.1,2.25813774]
[1772701105185,6.82,2117.1,2116.1,2.25813774]
[1772701105486,6.821,2117.0,2116.1,2.25813774]
[1772701106386,3.95504441,2117.2,2116.1,2.25813774]
[1772701106688,6.823,2116.9,2116.1,2.25813774]
[1772701106890,6.824,2116.8,2116.1,2.25813774]
[1772701107093,6.825,2116.7,2116.1,2.25813774]
[1772701107587,3.95504441,2117.3,2116.2,2.22039811]
[1772701107789,6.826,2117.2,2116.2,2.22039811]
[1772701108990,3.95504441,2117.3,2116.2,2.22039811]
[1772701109192,6.829,2117.2,2116.2,2.22039811]
[1772701110091,3.95504441,2117.3,2116.2,2.22039811]
[1772701110285,6.832,2117.2,2116.2,2.22039811]
[1772701110988,3.95504441,2117.4,2116.2,2.22039811]
[1772701111192,6.834,2117.3,2116.2,2.22039811]
[1772701111491,3.95504441,2117.4,2116.2,2.22039811]
[1772701111687,6.835,2117.2,2116.2,2.22039811]
[1772701111891,6.836,2117.1,2116.4,2.20819828]
[1772701112586,6.838,2117.0,2116.4,2.20819828]
[1772701113387,4.62980172,2117.0,2116.4,2.20819828]
[1772701113587,6.84,2117.2,2116.4,2.20819828]
[1772701113798,8.85660613,2117.4,2116.4,2.20819828]
[1772701114593,2.01660613,2117.3,2116.4,2.20819828]
[1772701116995,6.848,2117.2,2116.4,2.20819828]
[1772701117597,6.85,2117.4,2116.6,2.0266198]
[1772701117798,6.85,2117.4,2116.7,2.0266198]
[1772701117999,8.86660613,2117.4,2116.7,2.0266198]
[1772701118599,2.01660613,2117.3,2116.7,2.0266198]